fUST/lending_fUST_20251115
["ID","MTS","AMOUNT","RATE_DAILY","PERIOD"]
[393986194,1763161862618,-500.0,0.00054794,120]
[393986195,1763161862629,-514.32798401,0.00054794,120]
[393986196,1763161862639,-500.0,0.00054794,120]
[393986197,1763161862649,-500.0,0.00054794,120]
[393986198,1763161862659,-500.0,0.00054794,120]
[393986199,1763161862669,-500.0,0.00054794,120]
[393986200,1763161862680,-500.0,0.00054794,120]
[393986201,1763161862690,-500.0,0.00054794,120]
[393986202,1763161862700,-500.0,0.00054794,120]
[393986203,1763161862709,-500.0,0.00054794,120]
[393986204,1763161862719,-500.0,0.00054794,120]
[393986205,1763161862728,-377.50280124,0.00054794,120]
[393986206,1763161862738,-500.0,0.00054794,120]
[393986207,1763161862748,-500.0,0.00054794,120]
[393986208,1763161862757,-500.0,0.00054794,120]
[393986209,1763161862767,-500.0,0.00054794,120]
[393986210,1763161862777,-4050.32,0.00054794,120]
[393986211,1763161862786,-500.0,0.00054794,120]
[393986212,1763161862795,-500.0,0.00054794,120]
[393986213,1763161862805,-500.0,0.00054794,120]
[393986214,1763161862814,-500.0,0.00054794,120]
[393986215,1763161862824,-587.35152217,0.00054794,7]
[393986216,1763161862834,-500.0,0.00054794,120]
[393986217,1763161862846,-500.0,0.00054794,120]
[393986218,1763161862856,-1594.89,0.00054794,120]
[393986219,1763161862869,-604.71000767,0.00054794,120]
[393986220,1763161862879,-521.64,0.00054794,120]
[393986221,1763161862888,-500.0,0.00054794,120]
[393986222,1763161862898,-510.42080793,0.00054794,120]
[393986223,1763161862909,-500.0,0.00054794,120]
[393986224,1763161862919,-500.0,0.00054794,120]
[393986225,1763161862929,-500.0,0.00054794,120]
[393986226,1763161862939,-500.0,0.00054794,120]
[393986227,1763161862948,-500.0,0.00054794,120]
[393986228,1763161862958,-500.0,0.00054794,120]
[393986229,1763161862968,-500.0,0.00054794,120]
[393986230,1763161862978,-500.0,0.00054794,120]
[393986231,1763161862988,-634.19,0.00054794,120]
[393986232,1763161862998,-500.0,0.00054794,120]
[393986233,1763161863007,-500.0,0.00054794,120]
[393986234,1763161863017,-1122.16,0.00054794,120]
[393986235,1763161863027,-500.0,0.00054794,120]
[393986236,1763161863036,-1368.47,0.00054794,120]
[393986237,1763161863046,-500.0,0.00054794,120]
[393986238,1763161863055,-545.63,0.00054794,120]
[393986239,1763161863064,-530.17051994,0.00054794,120]
[393986240,1763161863073,-822.29,0.00054794,120]
[393986241,1763161863083,-500.0,0.00054794,120]
[393986242,1763161863096,-776.48,0.00054794,120]
[393986243,1763161863106,-500.0,0.00054794,120]
[393986244,1763161863115,-500.0,0.00054794,120]
[393986245,1763161863124,-500.0,0.00054794,120]
[393986246,1763161863134,-648.12,0.00054794,120]
[393986247,1763161863143,-500.0,0.00054794,120]
[393986248,1763161863152,-500.0,0.00054794,120]
[393986249,1763161863162,-500.0,0.00054794,120]
[393986250,1763161863172,-500.0,0.00054794,120]
[393986251,1763161863182,-1096.02,0.00054794,120]
[393986252,1763161863191,-500.0,0.00054794,120]
[393986253,1763161863199,-500.0,0.00054794,120]
[393986254,1763161863208,-500.0,0.00054794,120]
[393986255,1763161863218,-500.0,0.00054794,120]
[393986256,1763161863226,-500.0,0.00054794,120]
[393986257,1763161863236,-500.0,0.00054794,120]
[393986258,1763161863245,-1021.88,0.00054794,120]
[393986259,1763161863256,-500.0,0.00054794,120]
[393986260,1763161863266,-500.0,0.00054794,120]
[393986261,1763161863275,-500.0,0.00054794,120]
[393986262,1763161863284,-2802.34,0.00054794,120]
[393986263,1763161863294,-500.0,0.00054794,120]
[393986264,1763161863454,-500.0,0.00054794,120]
[393986265,1763161863465,-500.0,0.00054794,120]
[393986266,1763161863475,-809.01,0.00054794,120]
[393986267,1763161863485,-1152.31,0.00054794,120]
[393986268,1763161863495,-530.71,0.00054794,120]
[393986269,1763161863505,-519.73,0.00054794,120]
[393986270,1763161863515,-500.0,0.00054794,120]
[393986271,1763161863524,-500.0,0.00054794,120]
[393986272,1763161863535,-500.0,0.00054794,120]
[393986273,1763161863544,-500.0,0.00054794,120]
[393986274,1763161863554,-500.0,0.00054794,120]
[393986275,1763161863563,-500.0,0.00054794,120]
[393986276,1763161863573,-500.0,0.00054794,120]
[393986277,1763161863583,-799.36,0.00054794,120]
[393986278,1763161863595,-500.0,0.00054794,120]
[393986279,1763161863605,-648.83,0.00054794,120]
[393986280,1763161863614,-500.0,0.00054794,120]
[393986281,1763161863624,-500.0,0.00054794,120]
[393986282,1763161863635,-1202.43,0.00054794,120]
[393986283,1763161863644,-1000.0,0.00054794,2]
[393986284,1763161863654,-500.0,0.00054794,120]
[393986285,1763161863664,-500.0,0.00054794,120]
[393986286,1763161863674,-547.49,0.00054794,120]
[393986287,1763161863683,-500.0,0.00054794,120]
[393986288,1763161863693,-500.0,0.00054794,120]
[393986289,1763161863702,-500.0,0.00054794,120]
[393986290,1763161863712,-583.3,0.00054794,120]
[393986291,1763161863723,-500.0,0.00054794,120]
[393986292,1763161863733,-500.0,0.00054794,120]
[393986293,1763161863743,-27000.0,0.000549,120]
[393986294,1763161863753,-756.85693,0.00054902,120]
[393986295,1763161863763,-1000.0,0.00054999,120]
[393986296,1763161863773,-1000.0,0.00055,120]
[393986297,1763161863782,-200.0,0.00055,120]
[393986298,1763161863792,-100022.629243,0.00055,120]
[393986299,1763161863801,-1000.0,0.00055,120]
[393986300,1763161863811,-2018.60594585,0.00055,120]
[393986301,1763161863820,-10000.0,0.00055,90]
[393986302,1763161863830,-461789.88570942,0.00055,120]
[393986304,1763161864734,-604.14000147,0.0002399,2]
[393986305,1763161864745,-4463.13337869,0.0002399,2]
[393986306,1763161864760,-1169.9999995,0.0002399,2]
[393986307,1763161864772,-23515.50887261,0.0002399,2]
[393986308,1763161864782,-1790.182118,0.00024658,7]
[393986309,1763161864792,-1790.182118,0.00024658,7]
[393986310,1763161864801,-1790.182118,0.00024658,7]
[393986311,1763161864811,-1790.182118,0.00024658,7]
[393986312,1763161864820,-1790.182118,0.00024658,7]
[393986313,1763161864830,-159.1885,0.00024658,7]
[393986314,1763161864840,-1790.18212379,0.00024658,7]
[393986315,1763161864852,-151.0,0.00039004,14]
[393986316,1763161864865,-593.4565077,0.00041986,30]
[393986317,1763161864875,-500.0,0.00054794,120]
[393986318,1763161864885,-44230.87326514,0.00055,120]
[393986319,1763161865011,-12597.96763187,0.00055,120]
[393986321,1763161956357,150.0,0.00018464,2]
[393986322,1763161976081,513.694121,0.00013699,2]
[393986323,1763161976314,513.694121,0.00020187,2]
[393986365,1763162414644,8822.621758,0.00019995,2]
[393986366,1763162414670,10000.01,0.00019995,2]
[393986367,1763162414695,3286.3112208,0.00019995,2]
[393986411,1763162739155,-683.0838,0.00020893,2]
[393986448,1763162894417,999.0,0.00019982,2]
[393986453,1763162907422,251.52480392,0.0002,21]
[393986521,1763163032507,-212.9162,0.00020893,2]
[393986523,1763163032516,-150.0,0.00020893,2]
[393986525,1763163032525,-2.68277207,0.00020969,2]
[393986528,1763163032540,-148.31722793,0.00020969,2]
[393986530,1763163032550,-151.0,0.00020969,2]
[393986532,1763163032560,-151.0,0.00020969,2]
[393986533,1763163032569,-155.87612082,0.00020969,2]
[393986535,1763163032578,-300.0,0.00020979,2]
[393986537,1763163032587,-300.0,0.00020979,2]
[393986539,1763163032596,-300.0,0.00020979,2]
[393986541,1763163032605,-1200.0,0.00020979,2]
[393986542,1763163032614,-318.26945999,0.00020979,2]
[393986543,1763163032623,-500.0,0.00020979,2]
[393986544,1763163032632,-515.18215631,0.00020979,2]
[393986545,1763163032641,-1200.0,0.0002098,2]
[393986547,1763163032650,-22394.8288385,0.0002098,2]
[393986549,1763163032659,-437.17081058,0.0002098,2]
[393986551,1763163032668,-500.0,0.0002098,2]
[393986554,1763163032677,-500.0,0.0002098,2]
[393986556,1763163032686,-500.0,0.0002098,2]
[393986558,1763163032695,-500.0,0.0002098,2]
[393986560,1763163032703,-500.0,0.0002098,2]
[393986562,1763163032712,-500.0,0.0002098,2]
[393986564,1763163032721,-500.0,0.0002098,2]
[393986566,1763163032730,-500.0,0.0002098,2]
[393986568,1763163032739,-500.0,0.0002098,2]
[393986570,1763163032748,-500.0,0.0002098,2]
[393986571,1763163032757,-500.0,0.0002098,2]
[393986572,1763163032766,-500.0,0.0002098,2]
[393986573,1763163032775,-500.0,0.0002098,2]
[393986574,1763163032784,-500.0,0.0002098,2]
[393986575,1763163032793,-289.66817971,0.0002098,2]
[393986576,1763163032803,-483.76694267,0.0002098,2]
[393986577,1763163032813,-500.0,0.0002098,2]
[393986578,1763163032822,-285.07282242,0.0002098,2]
[393986579,1763163032831,-500.0,0.0002098,2]
[393986580,1763163032840,-400.0,0.0002098,2]
[393986581,1763163032849,-575.0,0.0002098,2]
[393986582,1763163032859,-500.0,0.0002098,2]
[393986583,1763163032868,-500.0,0.0002098,2]
[393986584,1763163032877,-500.0,0.0002098,2]
[393986585,1763163032886,-500.0,0.0002098,2]
[393986586,1763163032895,-500.0,0.0002098,2]
[393986587,1763163032905,-500.0,0.0002098,2]
[393986588,1763163032914,-270.0,0.0002098,2]
[393986589,1763163032923,-500.0,0.0002098,2]
[393986590,1763163032932,-500.0,0.0002098,2]
[393986591,1763163032941,-500.0,0.0002098,2]
[393986592,1763163032951,-500.0,0.0002098,2]
[393986593,1763163032960,-500.0,0.0002098,2]
[393986594,1763163032970,-500.0,0.0002098,2]
[393986595,1763163032979,-500.0,0.0002098,2]
[393986596,1763163032989,-500.0,0.0002098,2]
[393986597,1763163032999,-355.0,0.0002098,2]
[393986598,1763163033010,-500.0,0.0002098,2]
[393986599,1763163033019,-500.0,0.0002098,2]
[393986600,1763163033030,-500.0,0.0002098,2]
[393986601,1763163033040,-500.0,0.0002098,2]
[393986602,1763163033050,-500.0,0.0002098,2]
[393986603,1763163033063,-500.0,0.0002098,2]
[393986604,1763163033073,-500.0,0.0002098,2]
[393986605,1763163033083,-500.0,0.0002098,2]
[393986606,1763163033094,-500.0,0.0002098,2]
[393986607,1763163033104,-500.0,0.0002098,2]
[393986608,1763163033113,-500.0,0.0002098,2]
[393986609,1763163033122,-500.0,0.0002098,2]
[393986610,1763163033131,-500.0,0.0002098,2]
[393986611,1763163033141,-500.0,0.0002098,2]
[393986612,1763163033155,-500.0,0.0002098,2]
[393986613,1763163033165,-500.0,0.0002098,2]
[393986614,1763163033175,-500.0,0.0002098,2]
[393986615,1763163033185,-500.0,0.0002098,2]
[393986616,1763163033196,-500.0,0.0002098,2]
[393986617,1763163033206,-500.0,0.0002098,2]
[393986618,1763163033215,-500.0,0.0002098,2]
[393986619,1763163033224,-500.0,0.0002098,2]
[393986620,1763163033237,-550.0,0.0002098,2]
[393986621,1763163033247,-500.0,0.0002098,2]
[393986622,1763163033257,-500.0,0.0002098,2]
[393986623,1763163033266,-500.0,0.0002098,2]
[393986624,1763163033277,-500.0,0.0002098,2]
[393986625,1763163033286,-500.0,0.0002098,2]
[393986626,1763163033295,-500.0,0.0002098,2]
[393986627,1763163033305,-500.0,0.0002098,2]
[393986628,1763163033317,-500.0,0.0002098,2]
[393986629,1763163033326,-500.0,0.0002098,2]
[393986630,1763163033336,-500.0,0.0002098,2]
[393986631,1763163033345,-500.0,0.0002098,2]
[393986632,1763163033354,-500.0,0.0002098,2]
[393986633,1763163033363,-500.0,0.0002098,2]
[393986634,1763163033375,-500.0,0.0002098,2]
[393986635,1763163033384,-500.0,0.0002098,2]
[393986636,1763163033394,-500.0,0.0002098,2]
[393986637,1763163033404,-500.0,0.0002098,2]
[393986638,1763163033413,-500.0,0.0002098,2]
[393986639,1763163033423,-500.0,0.0002098,2]
[393986640,1763163033432,-500.0,0.0002098,2]
[393986641,1763163033442,-500.0,0.0002098,2]
[393986642,1763163033452,-500.0,0.0002098,2]
[393986643,1763163033461,-500.0,0.0002098,2]
[393986644,1763163033471,-500.0,0.0002098,2]
[393986645,1763163033481,-500.0,0.0002098,2]
[393986646,1763163033491,-500.0,0.0002098,2]
[393986647,1763163033501,-500.0,0.0002098,2]
[393986648,1763163033510,-500.0,0.0002098,2]
[393986649,1763163033520,-500.0,0.0002098,2]
[393986650,1763163033529,-500.0,0.0002098,2]
[393986651,1763163033539,-500.0,0.0002098,2]
[393986652,1763163033548,-500.0,0.0002098,2]
[393986653,1763163033559,-500.0,0.0002098,2]
[393986654,1763163033568,-500.0,0.0002098,2]
[393986655,1763163033578,-500.0,0.0002098,2]
[393986656,1763163033589,-500.0,0.0002098,2]
[393986657,1763163033598,-500.0,0.0002098,2]
[393986658,1763163033607,-500.0,0.0002098,2]
[393986659,1763163033616,-500.0,0.0002098,2]
[393986660,1763163033627,-500.0,0.0002098,2]
[393986661,1763163033636,-500.0,0.0002098,2]
[393986662,1763163033646,-500.0,0.0002098,2]
[393986663,1763163033655,-500.0,0.0002098,2]
[393986664,1763163033664,-500.0,0.0002098,2]
[393986665,1763163033674,-500.0,0.0002098,2]
[393986666,1763163033683,-500.0,0.0002098,2]
[393986667,1763163033693,-500.0,0.0002098,2]
[393986668,1763163033703,-500.0,0.0002098,2]
[393986669,1763163033712,-500.0,0.0002098,2]
[393986670,1763163033722,-500.0,0.0002098,2]
[393986671,1763163033731,-500.0,0.0002098,2]
[393986672,1763163033742,-500.0,0.0002098,2]
[393986673,1763163033751,-500.0,0.0002098,2]
[393986674,1763163033761,-500.0,0.0002098,2]
[393986675,1763163033770,-500.0,0.0002098,2]
[393986676,1763163033779,-500.0,0.0002098,2]
[393986677,1763163033788,-500.0,0.0002098,2]
[393986678,1763163033798,-500.0,0.0002098,2]
[393986679,1763163033807,-500.0,0.0002098,2]
[393986680,1763163033817,-500.0,0.0002098,2]
[393986681,1763163033826,-500.0,0.0002098,2]
[393986682,1763163033835,-500.0,0.0002098,2]
[393986683,1763163033844,-500.0,0.0002098,2]
[393986684,1763163033854,-500.0,0.0002098,2]
[393986685,1763163033862,-500.0,0.0002098,2]
[393986686,1763163033872,-500.0,0.0002098,2]
[393986687,1763163033881,-595.68900687,0.0002098,2]
[393986688,1763163033890,-500.0,0.0002098,2]
[393986689,1763163033900,-500.0,0.0002098,2]
[393986690,1763163033909,-500.0,0.0002098,2]
[393986691,1763163033918,-500.0,0.0002098,2]
[393986692,1763163033927,-500.0,0.0002098,2]
[393986693,1763163033936,-500.0,0.0002098,2]
[393986694,1763163033945,-500.0,0.0002098,2]
[393986695,1763163033954,-500.0,0.0002098,2]
[393986696,1763163033963,-500.0,0.0002098,2]
[393986697,1763163033972,-500.0,0.0002098,2]
[393986698,1763163033981,-500.0,0.0002098,2]
[393986699,1763163033990,-500.0,0.0002098,2]
[393986700,1763163033999,-343.94525761,0.0002098,2]
[393986701,1763163034008,-500.0,0.0002098,2]
[393986702,1763163034017,-500.0,0.0002098,2]
[393986703,1763163034027,-500.0,0.0002098,2]
[393986704,1763163034036,-500.0,0.0002098,2]
[393986705,1763163034045,-500.0,0.0002098,2]
[393986706,1763163034054,-500.0,0.0002098,2]
[393986707,1763163034064,-500.0,0.0002098,2]
[393986708,1763163034074,-500.0,0.0002098,2]
[393986709,1763163034083,-500.0,0.0002098,2]
[393986710,1763163034092,-500.0,0.0002098,2]
[393986711,1763163034101,-500.0,0.0002098,2]
[393986712,1763163034110,-500.0,0.0002098,2]
[393986713,1763163034120,-500.0,0.0002098,2]
[393986714,1763163034129,-500.0,0.0002098,2]
[393986715,1763163034139,-500.0,0.0002098,2]
[393986716,1763163034147,-500.0,0.0002098,2]
[393986717,1763163034156,-500.0,0.0002098,2]
[393986718,1763163034166,-500.0,0.0002098,2]
[393986719,1763163034175,-500.0,0.0002098,2]
[393986720,1763163034184,-500.0,0.0002098,2]
[393986721,1763163034193,-500.0,0.0002098,2]
[393986722,1763163034202,-500.0,0.0002098,2]
[393986723,1763163034212,-500.0,0.0002098,2]
[393986724,1763163034221,-500.0,0.0002098,2]
[393986725,1763163034233,-500.0,0.0002098,2]
[393986726,1763163034243,-500.0,0.0002098,2]
[393986727,1763163034252,-500.0,0.0002098,2]
[393986728,1763163034261,-500.0,0.0002098,2]
[393986729,1763163034270,-500.0,0.0002098,2]
[393986730,1763163034279,-500.0,0.0002098,2]
[393986731,1763163034289,-500.0,0.0002098,2]
[393986732,1763163034298,-500.0,0.0002098,2]
[393986733,1763163034307,-500.0,0.0002098,2]
[393986734,1763163034318,-500.0,0.0002098,2]
[393986735,1763163034327,-500.0,0.0002098,2]
[393986736,1763163034336,-500.0,0.0002098,2]
[393986737,1763163034345,-500.0,0.0002098,2]
[393986738,1763163034354,-576.34207512,0.0002098,2]
[393986739,1763163034364,-500.0,0.0002098,2]
[393986740,1763163034373,-500.0,0.0002098,2]
[393986741,1763163034382,-553.62,0.00020987,2]
[393986742,1763163034391,-500.0,0.00020988,2]
[393986743,1763163034400,-500.0,0.00021262,2]
[393986744,1763163034410,-500.0,0.00021536,2]
[393986745,1763163034419,-500.0,0.0002165,2]
[393986746,1763163034429,-500.0,0.0002165,2]
[393986747,1763163034438,-501.72215712,0.0002165,2]
[393986748,1763163034447,-500.0,0.0002165,2]
[393986749,1763163034456,-500.0,0.0002165,2]
[393986750,1763163034465,-500.0,0.0002165,2]
[393986751,1763163034475,-500.0,0.0002165,2]
[393986752,1763163034484,-500.0,0.0002165,2]
[393986753,1763163034494,-500.0,0.0002165,2]
[393986754,1763163034503,-500.0,0.0002165,2]
[393986755,1763163034512,-500.0,0.0002165,2]
[393986756,1763163034521,-500.0,0.0002178,2]
[393986757,1763163034530,-500.0,0.0002178,2]
[393986758,1763163034540,-500.0,0.0002181,2]
[393986759,1763163034549,-154.14934492,0.00022002,2]
[393986760,1763163034560,-500.0,0.00022084,2]
[393986761,1763163034569,-497.21368798,0.00022328,2]
[393986762,1763163034578,-500.0,0.00022358,2]
[393986763,1763163034588,-332.01371518,0.00022389,2]
[393986764,1763163034597,-500.0,0.00022632,2]
[393986765,1763163034606,-420.0,0.00022821,2]
[393986766,1763163034615,-1022.0,0.00022822,2]
[393986767,1763163034624,-195.38501607,0.00022828,4]
[393986768,1763163034634,-437.47689529,0.00022828,4]
[393986769,1763163034643,-177.0,0.00022893,2]
[393986770,1763163034652,-161.08,0.000229,7]
[393986771,1763163034662,-500.0,0.00022906,2]
[393986772,1763163034671,-1680.0,0.00022929,2]
[393986773,1763163034681,-512.14372084,0.0002318,2]
[393986774,1763163034691,-616.59737966,0.00023299,2]
[393986775,1763163034700,-1015.57215474,0.00023534,4]
[393986776,1763163034709,-204.0,0.00024893,2]
[393986777,1763163034718,-71183.4670786,0.000249,2]
[393986778,1763163034729,-168.0,0.0002515,20]
[393986779,1763163034738,-597.02706263,0.00025467,2]
[393986780,1763163034747,-414.777966,0.00025468,2]
[393986781,1763163034756,-500.0,0.00026027,2]
[393986782,1763163034924,-500.0,0.00026027,2]
[393986783,1763163034933,-500.0,0.00026027,2]
[393986784,1763163034942,-500.0,0.00026027,2]
[393986785,1763163034951,-500.0,0.00026027,2]
[393986786,1763163034960,-203.88597412,0.00026027,2]
[393986787,1763163034970,-1385.95676014,0.00026573,2]
[393986788,1763163034979,-513.694121,0.00026676,2]
[393986789,1763163034987,-231.0,0.00026893,2]
[393986790,1763163034996,-987.0,0.00028109,2]
[393986791,1763163035005,-629.0,0.00028109,2]
[393986792,1763163035014,-413.0,0.00028109,2]
[393986793,1763163035023,-258.0,0.00028893,2]
[393986794,1763163035032,-1000.0,0.000302,2]
[393986795,1763163035041,-1000.0,0.000302,2]
[393986796,1763163035050,-1000.0,0.000302,2]
[393986797,1763163035063,-1000.0,0.000302,2]
[393986798,1763163035071,-1000.0,0.000302,2]
[393986799,1763163035079,-1000.0,0.000302,2]
[393986800,1763163035088,-1000.0,0.000302,2]
[393986801,1763163035098,-1000.0,0.000302,2]
[393986802,1763163035107,-1000.0,0.000302,2]
[393986803,1763163035116,-1000.0,0.000302,2]
[393986804,1763163035124,-1000.0,0.000302,2]
[393986805,1763163035133,-1000.0,0.000302,2]
[393986806,1763163035143,-966.6225507,0.000302,2]
[393986807,1763163035152,-285.0,0.00030893,2]
[393986808,1763163035161,-987.0,0.00031109,2]
[393986809,1763163035170,-175.539,0.00031109,2]
[393986810,1763163035179,-413.0,0.00031109,2]
[393986811,1763163035188,-178.677,0.00031938,31]
[393986812,1763163035197,-312.0,0.00032893,120]
[393986813,1763163035205,-513.694121,0.00033165,2]
[393986814,1763163035214,-472.24004478,0.000332,117]
[393986815,1763163035223,-472.24004474,0.000332,117]
[393986816,1763163035233,-987.0,0.00034109,2]
[393986817,1763163035245,-413.0,0.00034109,2]
[393986818,1763163035254,-339.0,0.00034893,120]
[393986819,1763163035263,-413.0,0.00037109,2]
[393986820,1763163035272,-150.0,0.00038948,2]
[393986821,1763163035280,-3841.16596802,0.00038948,2]
[393986822,1763163035290,-4383.2381691,0.00038948,2]
[393986823,1763163035299,-300.0,0.00038948,2]
[393986824,1763163035310,-815.14759562,0.00038948,2]
[393986825,1763163035321,-345.88893329,0.00038948,2]
[393986826,1763163035330,-259.93735765,0.00038948,2]
[393986827,1763163035339,-461.716526,0.00038948,2]
[393986828,1763163035348,-1040.08187364,0.00038948,7]
[393986829,1763163035357,-4573.63174388,0.00038948,2]
[393986830,1763163035367,-311.23575477,0.00038948,2]
[393986831,1763163035376,-898.13060862,0.00038948,3]
[393986832,1763163035385,-2000.0,0.00038948,10]
[393986833,1763163035394,-500.0,0.00039399,14]
[393986834,1763163035403,-177.33551619,0.000396,120]
[393986835,1763163035412,-184.20668695,0.000396,120]
[393986836,1763163035422,-188.8997868,0.000396,120]
[393986837,1763163035430,-176.47093901,0.000396,120]
[393986838,1763163035439,-277.54104803,0.000396,120]
[393986839,1763163035448,-300.62817991,0.000396,120]
[393986840,1763163035457,-200.10443906,0.000396,120]
[393986841,1763163035466,-160.03049668,0.000396,120]
[393986842,1763163035474,-309.65568806,0.000396,120]
[393986843,1763163035483,-235.06478025,0.000396,120]
[393986844,1763163035492,-433.43207281,0.000396,120]
[393986845,1763163035501,-160.42231694,0.000396,120]
[393986846,1763163035511,-214.72598845,0.000396,120]
[393986847,1763163035519,-160.28857288,0.000396,120]
[393986848,1763163035528,-513.694121,0.00039654,2]
[393986849,1763163035537,-413.0,0.00040109,2]
[393986850,1763163035546,-472.24004474,0.00040665,120]
[393986851,1763163035558,-177.33551619,0.000408,120]
[393986852,1763163035567,-184.20668695,0.000408,120]
[393986853,1763163035576,-188.8997868,0.000408,120]
[393986854,1763163035585,-277.54104803,0.000408,120]
[393986855,1763163035594,-300.62817991,0.000408,120]
[393986856,1763163035603,-200.10443906,0.000408,120]
[393986857,1763163035612,-160.03049668,0.000408,120]
[393986858,1763163035622,-309.65568806,0.000408,120]
[393986859,1763163035630,-235.06478025,0.000408,120]
[393986860,1763163035639,-433.43207281,0.000408,120]
[393986861,1763163035649,-214.72598845,0.000408,120]
[393986862,1763163035658,-160.28857288,0.000408,120]
[393986863,1763163035667,-999.0,0.00041095,120]
[393986864,1763163035676,-177.33551619,0.00042,120]
[393986865,1763163035685,-184.20668695,0.00042,120]
[393986866,1763163035693,-188.8997868,0.00042,120]
[393986867,1763163035703,-277.54104803,0.00042,120]
[393986868,1763163035712,-300.62817991,0.00042,120]
[393986869,1763163035721,-200.10443906,0.00042,120]
[393986870,1763163035730,-160.03049668,0.00042,120]
[393986871,1763163035739,-309.65568806,0.00042,120]
[393986872,1763163035748,-433.43207281,0.00042,120]
[393986873,1763163035757,-214.72598845,0.00042,120]
[393986874,1763163035766,-408.001,0.00043109,2]
[393986875,1763163035775,-177.33551619,0.000433,120]
[393986876,1763163035784,-184.20668695,0.000433,120]
[393986877,1763163035793,-188.8997868,0.000433,120]
[393986878,1763163035803,-277.54104803,0.000433,120]
[393986879,1763163035815,-300.62817991,0.000433,120]
[393986880,1763163035824,-160.03049668,0.000433,120]
[393986881,1763163035833,-309.65568806,0.000433,120]
[393986882,1763163035842,-433.43207281,0.000433,120]
[393986883,1763163035851,-214.72598845,0.000433,120]
[393986884,1763163035860,-300.0,0.00043726,30]
[393986885,1763163035869,-999.0,0.00043835,120]
[393986886,1763163035878,-666.99,0.00044109,14]
[393986887,1763163035887,-177.33551619,0.000446,120]
[393986888,1763163035896,-184.20668695,0.000446,120]
[393986889,1763163035905,-277.54104803,0.000446,120]
[393986890,1763163035914,-300.62817991,0.000446,120]
[393986891,1763163035924,-160.03049668,0.000446,120]
[393986892,1763163035933,-309.65568806,0.000446,120]
[393986893,1763163035942,-433.43207281,0.000446,120]
[393986894,1763163035950,-214.72598845,0.000446,120]
[393986895,1763163035959,-200.0,0.00045,120]
[393986896,1763163035968,-666.99,0.00045479,15]
[393986897,1763163035977,-513.694121,0.00046143,2]
[393986898,1763163035986,-500.0,0.00046466,40]
[393986899,1763163035995,-999.0,0.00046575,120]
[393986900,1763163036004,-180.74448768,0.00046832,35]
[393986901,1763163036013,-666.99,0.00046849,16]
[393986902,1763163036022,-666.99,0.00048219,17]
[393986903,1763163036031,-999.0,0.00049315,120]
[393986904,1763163036040,-666.99,0.00049589,18]
[393986905,1763163036049,-500.0,0.00049905,60]
[393986906,1763163036060,-2000.0,0.00050184,21]
[393986907,1763163036069,-472.24004474,0.00050556,120]
[393986908,1763163036078,-666.99,0.00050958,19]
[393986909,1763163036087,-500.0,0.00051945,60]